fUST/lending_fUST_20250914
["ID","MTS","AMOUNT","RATE_DAILY","PERIOD"]
[385453708,1757861447078,-151.0,0.000224,9]
[385453709,1757861447087,-151.0,0.000224,7]
[385453710,1757861447096,-150.0,0.000224,2]
[385453711,1757861447105,-500.0,0.000224,2]
[385453712,1757861447115,-2696.0,0.00022435,2]
[385453713,1757861447124,-500.0,0.00022465,5]
[385453714,1757861447133,-480.0,0.00022465,3]
[385453715,1757861447143,-480.0,0.00022465,3]
[385453716,1757861447151,-480.0,0.00022465,2]
[385453717,1757861447161,-673.11,0.00022465,3]
[385453718,1757861447170,-480.0,0.00022465,3]
[385453719,1757861447179,-480.0,0.00022465,3]
[385453720,1757861447188,-480.0,0.00022465,3]
[385453721,1757861447198,-490.30707561,0.00022465,3]
[385453722,1757861447207,-480.0,0.00022465,3]
[385453723,1757861447216,-480.0,0.00022465,3]
[385453724,1757861447225,-974.82,0.00022465,3]
[385453725,1757861447235,-480.0,0.00022465,3]
[385453726,1757861447244,-822.3,0.00022465,3]
[385453727,1757861447253,-480.0,0.00022465,3]
[385453728,1757861447263,-480.0,0.00022465,3]
[385453729,1757861447272,-480.0,0.00022465,3]
[385453730,1757861447281,-590.24,0.00022465,3]
[385453731,1757861447290,-424.37260347,0.00022465,3]
[385453732,1757861447299,-480.0,0.00022465,3]
[385453733,1757861447308,-157.23534942,0.00022465,3]
[385453734,1757861447317,-1137.16,0.00022465,3]
[385453735,1757861447327,-480.0,0.00022465,3]
[385453736,1757861447336,-480.0,0.00022465,3]
[385453737,1757861447345,-480.0,0.00022465,3]
[385453738,1757861447354,-480.0,0.00022465,3]
[385453739,1757861447363,-480.0,0.00022465,3]
[385453740,1757861447372,-480.0,0.00022465,3]
[385453741,1757861447381,-480.0,0.00022465,3]
[385453742,1757861447390,-480.0,0.00022465,3]
[385453743,1757861447400,-480.0,0.00022465,3]
[385453744,1757861447409,-712.05,0.00022465,3]
[385453745,1757861447418,-214.02317887,0.00022465,3]
[385453746,1757861447428,-480.0,0.00022465,3]
[385453747,1757861447437,-480.0,0.00022465,3]
[385453748,1757861447446,-164.7,0.00022465,7]
[385453749,1757861447456,-164.7,0.00022465,7]
[385453750,1757861447465,-582.53078713,0.00022465,3]
[385453751,1757861447474,-164.7,0.00022465,7]
[385453752,1757861447484,-480.0,0.00022465,3]
[385453753,1757861447493,-497.51,0.00022465,3]
[385453754,1757861447503,-164.7,0.00022465,7]
[385453755,1757861447512,-480.0,0.00022465,3]
[385453756,1757861447521,-500.0,0.00022465,3]
[385453757,1757861447531,-480.0,0.00022465,3]
[385453758,1757861447540,-668.04,0.00022465,3]
[385453759,1757861447549,-480.0,0.00022465,3]
[385453760,1757861447559,-986.65,0.00022465,3]
[385453761,1757861447570,-1030.51,0.00022465,3]
[385453762,1757861447581,-480.0,0.00022465,3]
[385453763,1757861447591,-892.61,0.00022465,3]
[385453764,1757861447600,-480.0,0.00022465,3]
[385453765,1757861447610,-482.13729039,0.00022465,3]
[385453766,1757861447619,-480.0,0.00022465,3]
[385453767,1757861447628,-822.49,0.00022465,3]
[385453768,1757861447638,-944.76,0.00022465,3]
[385453769,1757861447648,-480.0,0.00022465,3]
[385453770,1757861447657,-1941.17,0.00022465,3]
[385453771,1757861447667,-480.0,0.00022465,3]
[385453772,1757861447676,-948.56,0.00022465,3]
[385453773,1757861447685,-480.0,0.00022465,3]
[385453774,1757861447694,-603.67,0.00022465,3]
[385453775,1757861447704,-480.0,0.00022465,3]
[385453776,1757861447713,-422.59115298,0.00022465,3]
[385453777,1757861447722,-1115.86,0.00022465,3]
[385453778,1757861447732,-500.0,0.00022465,3]
[385453779,1757861447741,-394.09621607,0.00022465,3]
[385453780,1757861447750,-480.0,0.00022465,3]
[385453781,1757861447760,-496.57,0.00022465,3]
[385453782,1757861447769,-480.0,0.00022465,3]
[385453783,1757861447779,-480.0,0.00022465,3]
[385453784,1757861447788,-480.0,0.00022465,3]
[385453785,1757861447797,-480.0,0.00022465,3]
[385453786,1757861447807,-982.19,0.00022465,3]
[385453787,1757861447816,-480.0,0.00022465,3]
[385453788,1757861447826,-584.79,0.00022465,3]
[385453789,1757861447836,-480.0,0.00022465,3]
[385453790,1757861447846,-951.57,0.00022465,3]
[385453791,1757861447855,-480.0,0.00022465,3]
[385453792,1757861447866,-480.0,0.00022465,3]
[385453793,1757861447875,-483.152879,0.00022465,3]
[385453794,1757861447885,-316.58725606,0.00022465,3]
[385453795,1757861447894,-480.0,0.00022465,3]
[385453796,1757861447906,-1979.93,0.00022465,3]
[385453797,1757861447918,-480.0,0.00022465,3]
[385453798,1757861447927,-480.0,0.00022465,3]
[385453799,1757861447937,-480.0,0.00022465,3]
[385453800,1757861447949,-480.0,0.00022465,3]
[385453801,1757861447958,-1310.17,0.00022465,3]
[385453802,1757861447968,-430.64252563,0.00022465,3]
[385453803,1757861447978,-1008.07,0.00022465,3]
[385453804,1757861447988,-480.0,0.00022465,3]
[385453805,1757861447998,-480.0,0.00022465,3]
[385453806,1757861448008,-167.17,0.00022465,3]
[385453807,1757861448017,-300.0,0.00022465,2]
[385453808,1757861448027,-480.0,0.00022465,3]
[385453809,1757861448038,-322.8226475,0.00022465,3]
[385453810,1757861448048,-784.97,0.00022465,3]
[385453811,1757861448167,-480.0,0.00022465,3]
[385453812,1757861448191,-498.12,0.00022465,3]
[385453813,1757861448201,-480.0,0.00022465,3]
[385453814,1757861448211,-480.0,0.00022465,3]
[385453815,1757861448221,-480.0,0.00022465,3]
[385453816,1757861448230,-480.0,0.00022465,3]
[385453817,1757861448240,-494.38489727,0.00022465,3]
[385453818,1757861448249,-480.0,0.00022465,3]
[385453819,1757861448259,-1221.84,0.00022465,3]
[385453820,1757861448268,-395.94846288,0.00022465,3]
[385453821,1757861448277,-480.0,0.00022465,3]
[385453822,1757861448286,-451.89421521,0.00022465,3]
[385453823,1757861448295,-167.88033154,0.00022465,3]
[385453824,1757861448304,-480.0,0.00022465,3]
[385453825,1757861448314,-480.0,0.00022465,3]
[385453826,1757861448324,-480.0,0.00022465,3]
[385453827,1757861448334,-844.86,0.00022465,3]
[385453828,1757861448344,-857.92,0.00022465,3]
[385453829,1757861448354,-480.0,0.00022465,3]
[385453830,1757861448363,-480.0,0.00022465,3]
[385453831,1757861448373,-480.0,0.00022465,3]
[385453832,1757861448383,-780.94,0.00022465,3]
[385453833,1757861448392,-505.81,0.00022465,3]
[385453834,1757861448402,-151.0,0.00022465,7]
[385453835,1757861448413,-480.0,0.00022465,3]
[385453836,1757861448422,-480.0,0.00022465,3]
[385453837,1757861448438,-151.0,0.00022465,7]
[385453838,1757861448447,-261.476219,0.00022465,7]
[385453839,1757861448459,-480.0,0.00022465,3]
[385453840,1757861448469,-480.0,0.00022465,3]
[385453841,1757861448479,-480.0,0.00022465,3]
[385453842,1757861448489,-734.18,0.00022465,3]
[385453843,1757861448499,-624.38,0.00022465,3]
[385453844,1757861448509,-811.47,0.00022465,3]
[385453845,1757861448518,-977.12,0.00022465,3]
[385453846,1757861448528,-1286.18,0.00022465,3]
[385453847,1757861448537,-1159.89,0.00022465,3]
[385453848,1757861448547,-480.0,0.00022465,3]
[385453849,1757861448561,-1268.92,0.00022465,3]
[385453850,1757861448570,-231.09043074,0.00022465,3]
[385453851,1757861448581,-568.38,0.00022465,3]
[385453852,1757861448595,-683.46,0.00022465,3]
[385453853,1757861448604,-6123.69,0.00022465,3]
[385453854,1757861448614,-480.0,0.00022465,3]
[385453855,1757861448624,-13955.39,0.00022465,3]
[385453856,1757861448633,-815.89,0.00022465,3]
[385453857,1757861448644,-480.0,0.00022465,3]
[385453858,1757861448654,-1568.23,0.00022465,3]
[385453859,1757861448664,-2275.06286251,0.00022465,3]
[385453860,1757861448861,-326.75342642,0.00022465,3]
[385453861,1757861448993,-150.0,0.00022331,2]
[385453862,1757861449003,-1623.15371107,0.00022465,3]
[385453863,1757861449013,-313.90717,0.00022465,3]
[385453864,1757861449023,-480.0,0.00022465,3]
[385453865,1757861449033,-480.0,0.00022465,3]
[385453866,1757861449043,-480.0,0.00022465,3]
[385453867,1757861449052,-1170.95998429,0.00022465,3]
[385453868,1757861449064,-403.35001571,0.00022465,3]
[385453869,1757861449074,-688.79,0.00022465,3]
[385453870,1757861449085,-1617.97,0.00022465,3]
[385453871,1757861449094,-2801.74,0.00022465,3]
[385453872,1757861449104,-512.98,0.00022465,3]
[385453873,1757861449113,-637.03,0.00022465,3]
[385453874,1757861449123,-2310.62,0.00022465,3]
[385453875,1757861449133,-480.0,0.00022465,3]
[385453876,1757861449142,-2314.91,0.00022465,3]
[385453877,1757861449151,-1228.88,0.00022465,3]
[385453878,1757861449161,-592.28956643,0.00022465,3]
[385453879,1757861449171,-7025.21,0.00022465,3]
[385453880,1757861449181,-1342.25,0.00022465,3]
[385453881,1757861449190,-454.98041786,0.00022465,3]
[385453882,1757861449205,-442.98958214,0.00022465,3]
[385453883,1757861449215,-480.0,0.00022465,3]
[385453884,1757861449224,-480.0,0.00022465,3]
[385453885,1757861449234,-480.0,0.00022465,3]
[385453886,1757861449244,-2920.79,0.00022465,3]
[385453887,1757861449253,-874.46695391,0.00022465,3]
[385453888,1757861449268,-2394.18304609,0.00022465,3]
[385453889,1757861449277,-1212.06,0.00022465,3]
[385453890,1757861449287,-480.0,0.00022465,3]
[385453891,1757861449296,-3076.98,0.00022465,3]
[385453892,1757861449306,-597.56,0.00022465,3]
[385453893,1757861449315,-4228.56,0.00022465,3]
[385453894,1757861449325,-297.77655345,0.00022465,3]
[385453895,1757861449336,-542.98,0.00022465,3]
[385453896,1757861449345,-480.0,0.00022465,3]
[385453897,1757861449355,-971.82,0.00022465,3]
[385453898,1757861449364,-480.0,0.00022465,3]
[385453899,1757861449374,-4389.90189471,0.00022465,3]
[385453900,1757861449390,-1363.25810529,0.00022465,3]
[385453901,1757861449400,-480.0,0.00022465,3]
[385453902,1757861449410,-480.0,0.00022465,3]
[385453903,1757861449420,-480.0,0.00022465,3]
[385453904,1757861449429,-523.27,0.00022465,3]
[385453905,1757861449439,-1319.58,0.00022465,3]
[385453906,1757861449448,-509.31083558,0.00022465,3]
[385453907,1757861449457,-480.0,0.00022465,3]
[385453908,1757861449467,-480.0,0.00022465,3]
[385453909,1757861449477,-10.62510797,0.00022465,7]
[385453910,1757861449491,-140.37489203,0.00022465,7]
[385453911,1757861449501,-612.77,0.00022465,3]
[385453912,1757861449511,-829.63,0.00022465,3]
[385453913,1757861449520,-1123.93,0.00022465,3]
[385453914,1757861449530,-1467.29,0.00022465,3]
[385453915,1757861449539,-498.23,0.00022465,3]
[385453916,1757861449549,-1038.84,0.00022465,3]
[385453917,1757861449559,-616.35,0.00022465,3]
[385453918,1757861449568,-2556.61,0.00022465,3]
[385453919,1757861449578,-909.61,0.00022465,3]
[385453920,1757861449590,-954.99436592,0.00022465,3]
[385453921,1757861449604,-638.57563408,0.00022465,3]
[385453922,1757861449614,-834.99,0.00022465,3]
[385453923,1757861449624,-1158.75,0.00022465,3]
[385453924,1757861449634,-4013.07,0.00022465,3]
[385453925,1757861449643,-780.28,0.00022465,3]
[385453926,1757861449653,-602.68,0.00022465,3]
[385453927,1757861449663,-569.55,0.00022465,3]
[385453928,1757861449672,-736.66,0.00022465,3]
[385453929,1757861449682,-24338.45,0.00022465,3]
[385453930,1757861449691,-2989.2,0.00022465,3]
[385453931,1757861449701,-535.50546771,0.00022465,3]
[385453932,1757861449711,-1380.42,0.00022465,3]
[385453933,1757861449721,-1178.35,0.00022465,3]
[385453934,1757861449730,-1484.75300894,0.00022465,3]
[385453935,1757861449745,-1192.64699106,0.00022465,3]
[385453936,1757861449754,-480.0,0.00022465,3]
[385453937,1757861449764,-1461.19,0.00022465,3]
[385453938,1757861449774,-480.0,0.00022465,3]
[385453940,1757861449783,-567.85,0.00022465,3]
[385453942,1757861449793,-1953.71,0.00022465,3]
[385453944,1757861449803,-480.0,0.00022465,3]
[385453946,1757861449812,-480.0,0.00022465,3]
[385453948,1757861449822,-1088.61,0.00022465,3]
[385453950,1757861449832,-480.0,0.00022465,3]
[385453952,1757861449843,-892.19,0.00022465,3]
[385453954,1757861449852,-151.0,0.00022465,7]
[385453956,1757861449862,-151.0,0.00022465,7]
[385453958,1757861449871,-1173.4,0.00022465,3]
[385453960,1757861449881,-151.0,0.00022465,7]
[385453962,1757861449891,-151.0,0.00022465,7]
[385453964,1757861449901,-411.06605667,0.00022465,3]
[385453966,1757861449919,-110.75394333,0.00022465,3]
[385453967,1757861449928,-818.3,0.00022465,3]
[385453968,1757861449937,-600.82,0.00022465,3]
[385453969,1757861449947,-3090.32,0.00022465,3]
[385453970,1757861449957,-151.0,0.00022465,7]
[385453971,1757861449967,-259.380468,0.00022465,7]
[385453972,1757861449978,-2735.44,0.00022465,3]
[385453973,1757861449988,-480.0,0.00022465,2]
[385453974,1757861449998,-3000.0,0.0002247,2]
[385453975,1757861450008,-151.0,0.0002247,7]
[385453976,1757861450017,-500.0,0.00022473,2]
[385453977,1757861450026,-500.0,0.00022473,2]
[385453978,1757861450036,-150.0,0.00022473,2]
[385453980,1757861450045,-500.84828628,0.00022473,2]
[385453982,1757861450054,-501.26665477,0.00022473,2]
[385453984,1757861450064,-500.79587763,0.00022473,2]
[385453986,1757861450074,-500.0,0.00022473,2]
[385453989,1757861450085,-500.0,0.00022473,2]
[385453991,1757861450094,-500.98199884,0.00022473,2]
[385453993,1757861450104,-500.0,0.00022473,2]
[385453995,1757861450113,-500.77666134,0.00022473,2]
[385453997,1757861450122,-500.0,0.00022473,2]
[385453999,1757861450132,-500.0,0.00022473,2]
[385454001,1757861450141,-500.0,0.00022473,2]
[385454003,1757861450150,-29.87172079,0.00022473,2]
[385454017,1757861450276,-460.0,0.00021697,2]
[385454019,1757861450288,-108.254504,0.00021697,2]
[385454021,1757861450298,-470.12827921,0.00022473,2]
[385454023,1757861450307,-500.0,0.00022473,2]
[385454025,1757861450318,-500.0,0.00022473,2]
[385454026,1757861450327,-150.0,0.00022473,2]
[385454027,1757861450338,-3000.0,0.0002248,2]
[385454028,1757861450348,-287.881,0.0002248,2]
[385454029,1757861450357,-3000.0,0.0002249,2]
[385454030,1757861450367,-3000.0,0.000225,2]
[385454031,1757861450377,-184.283136,0.000225,2]
[385454032,1757861450387,-151.0,0.000225,8]
[385454033,1757861450397,-3000.0,0.0002251,2]
[385454034,1757861450407,-3000.0,0.0002252,2]
[385454035,1757861450416,-411.06922566,0.00022521,2]
[385454037,1757861450426,-373.62411309,0.00022521,2]
[385454039,1757861450435,-503.77118547,0.00022521,2]
[385454040,1757861450444,-1000.0,0.00022521,2]
[385454042,1757861450453,-502.12426079,0.00022521,2]
[385454043,1757861450462,-500.0,0.00022521,2]
[385454044,1757861450471,-502.8461323,0.00022521,2]
[385454045,1757861450481,-1000.0,0.00022521,2]
[385454046,1757861450490,-1000.0,0.00022521,2]
[385454047,1757861450499,-1000.0,0.00022521,2]
[385454048,1757861450509,-155.76395663,0.00022521,2]
[385454049,1757861450518,-500.0,0.00022521,2]
[385454050,1757861450528,-1146.68926312,0.00022521,2]
[385454051,1757861450537,-1000.0,0.00022521,2]
[385454052,1757861450546,-1000.0,0.00022521,2]
[385454053,1757861450556,-500.0,0.00022521,2]
[385454054,1757861450718,-1000.0,0.00022521,2]
[385454055,1757861450728,-1000.0,0.00022521,2]
[385454056,1757861450738,-501.37998563,0.00022521,2]
[385454057,1757861450748,-1000.0,0.00022521,2]
[385454058,1757861450758,-1000.0,0.00022521,2]
[385454059,1757861450767,-151.0,0.00022521,7]
[385454060,1757861450777,-151.0,0.00022521,7]
[385454062,1757861450786,-556.0,0.00022523,2]
[385454063,1757861450796,-3000.0,0.0002253,2]
[385454065,1757861450805,-3000.0,0.0002254,2]
[385454066,1757861450815,-3000.0,0.0002255,2]
[385454068,1757861450825,-3000.0,0.0002256,2]
[385454069,1757861450837,-3000.0,0.0002257,2]
[385454070,1757861450847,-3000.0,0.0002258,2]
[385454072,1757861450857,-168.0,0.00022582,2]
[385454073,1757861450867,-3000.0,0.0002259,2]
[385454074,1757861450876,-7368.32370388,0.00022596,2]
[385454075,1757861450886,-3000.0,0.000226,2]
[385454076,1757861450895,-151.0,0.000226,6]
[385454078,1757861450910,-151.0,0.000226,7]
[385454079,1757861450918,-1000.0,0.000226,2]
[385454081,1757861450928,-3000.0,0.0002261,2]
[385454083,1757861450937,-823.605,0.00022612,2]
[385454085,1757861450948,-600.0,0.00022619,2]
[385454087,1757861450957,-3000.0,0.0002262,2]
[385454089,1757861450966,-500.0,0.00022622,8]
[385454091,1757861450976,-3000.0,0.0002263,2]
[385454093,1757861450986,-3000.0,0.0002264,2]
[385454094,1757861450995,-164.7,0.0002264,7]
[385454095,1757861451005,-164.7,0.0002264,7]
[385454096,1757861451015,-164.7,0.0002264,7]
[385454097,1757861451025,-164.7,0.0002264,7]
[385454098,1757861451035,-3000.0,0.0002265,2]
[385454099,1757861451046,-168.0,0.00022657,2]
[385454100,1757861451056,-3000.0,0.0002266,2]
[385454101,1757861451065,-3000.0,0.0002267,2]
[385454102,1757861451074,-168.0,0.0002268,2]
[385454103,1757861451085,-3000.0,0.0002268,2]
[385454104,1757861451094,-163.55172474,0.00022685,3]
[385454105,1757861451104,-3000.0,0.0002269,2]
[385454106,1757861451114,-168.0,0.00022693,2]
[385454107,1757861451124,-3000.0,0.000227,2]
[385454108,1757861451133,-1001.24484271,0.000227,2]
[385454109,1757861451143,-3000.0,0.0002271,2]
[385454110,1757861451152,-3000.0,0.0002272,2]
[385454111,1757861451161,-863.8343939,0.00022721,2]
[385454112,1757861451170,-1000.0,0.00022721,2]
[385454113,1757861451180,-1000.0,0.00022721,2]
[385454114,1757861451189,-1000.0,0.00022721,2]
[385454115,1757861451199,-506.85340584,0.00022721,2]
[385454116,1757861451208,-1000.0,0.00022721,2]
[385454117,1757861451217,-1000.0,0.00022721,2]
[385454118,1757861451227,-1000.0,0.00022721,2]
[385454119,1757861451236,-501.94424616,0.00022721,2]
[385454120,1757861451245,-1000.0,0.00022721,2]
[385454121,1757861451255,-3000.0,0.0002273,2]
[385454122,1757861451264,-500.0,0.00022739,5]
[385454123,1757861451273,-480.0,0.00022739,3]
[385454124,1757861451282,-480.0,0.00022739,3]
[385454125,1757861451291,-480.0,0.00022739,2]
[385454126,1757861451300,-673.11,0.00022739,3]
[385454127,1757861451310,-480.0,0.00022739,3]
[385454128,1757861451319,-480.0,0.00022739,3]
[385454129,1757861451328,-480.0,0.00022739,3]
[385454130,1757861451341,-974.82,0.00022739,3]
[385454131,1757861451350,-505.34250469,0.00022739,3]
[385454132,1757861451359,-822.3,0.00022739,3]
[385454133,1757861451369,-584.83644283,0.00022739,3]
[385454134,1757861451378,-480.0,0.00022739,3]
[385454135,1757861451388,-590.24,0.00022739,3]
[385454136,1757861451397,-480.0,0.00022739,3]
[385454137,1757861451406,-1137.16,0.00022739,3]
[385454138,1757861451416,-480.0,0.00022739,3]
[385454139,1757861451425,-482.91256193,0.00022739,3]
[385454140,1757861451434,-480.0,0.00022739,3]
[385454141,1757861451443,-499.66257259,0.00022739,3]
[385454142,1757861451454,-396.94283022,0.00022739,3]
[385454143,1757861451463,-480.0,0.00022739,3]
[385454144,1757861451472,-480.0,0.00022739,3]
[385454145,1757861451482,-480.0,0.00022739,3]
[385454146,1757861451491,-712.05,0.00022739,3]
[385454147,1757861451500,-480.0,0.00022739,3]
[385454148,1757861451509,-164.7,0.00022739,7]
[385454149,1757861451519,-164.7,0.00022739,7]
[385454150,1757861451528,-480.0,0.00022739,3]
[385454151,1757861451537,-164.7,0.00022739,7]
[385454152,1757861451547,-497.51,0.00022739,3]
[385454153,1757861451557,-164.7,0.00022739,7]
[385454154,1757861451566,-507.12464074,0.00022739,3]
[385454155,1757861451575,-500.0,0.00022739,3]
[385454156,1757861451585,-480.0,0.00022739,3]
[385454157,1757861451595,-668.04,0.00022739,3]
[385454158,1757861451605,-480.0,0.00022739,3]
[385454159,1757861451614,-986.65,0.00022739,3]
[385454160,1757861451624,-1030.51,0.00022739,3]
[385454161,1757861451634,-480.0,0.00022739,3]
[385454162,1757861451644,-497.91640254,0.00022739,3]
[385454163,1757861451653,-892.61,0.00022739,3]
[385454164,1757861451663,-480.0,0.00022739,3]
[385454165,1757861451672,-822.49,0.00022739,3]
[385454166,1757861451681,-944.76,0.00022739,3]
[385454167,1757861451691,-1941.17,0.00022739,3]
[385454168,1757861451700,-948.56,0.00022739,3]
[385454169,1757861451710,-480.0,0.00022739,3]
[385454170,1757861451719,-603.67,0.00022739,3]
[385454171,1757861451729,-1115.86,0.00022739,3]
[385454172,1757861451738,-500.0,0.00022739,3]
[385454173,1757861451747,-480.0,0.00022739,3]
[385454174,1757861451757,-496.57,0.00022739,3]
[385454175,1757861451766,-480.0,0.00022739,3]
[385454176,1757861451776,-480.0,0.00022739,3]
[385454177,1757861451786,-480.0,0.00022739,3]
[385454178,1757861451796,-480.0,0.00022739,3]
[385454179,1757861451806,-982.19,0.00022739,3]
[385454180,1757861451815,-480.0,0.00022739,3]
[385454181,1757861451825,-584.79,0.00022739,3]
[385454182,1757861451837,-480.0,0.00022739,3]
[385454183,1757861451847,-951.57,0.00022739,3]
[385454184,1757861451857,-480.0,0.00022739,3]
[385454185,1757861451866,-431.48,0.00022739,3]
[385454186,1757861451875,-480.0,0.00022739,3]
[385454187,1757861451884,-1979.93,0.00022739,3]
[385454188,1757861451893,-480.0,0.00022739,3]
[385454189,1757861451904,-480.0,0.00022739,3]
[385454190,1757861451918,-480.0,0.00022739,3]
[385454191,1757861451933,-480.0,0.00022739,3]
[385454192,1757861451948,-1310.17,0.00022739,3]
[385454193,1757861451962,-1008.07,0.00022739,3]
[385454194,1757861451974,-480.0,0.00022739,3]
[385454195,1757861451989,-480.0,0.00022739,3]
[385454196,1757861452003,-300.0,0.00022739,2]
[385454197,1757861452016,-407.12969967,0.00022739,3]
[385454198,1757861452030,-784.97,0.00022739,3]
[385454199,1757861452043,-498.12,0.00022739,3]
[385454200,1757861452056,-265.7536046,0.00022739,3]
[385454201,1757861452069,-214.64698675,0.00022739,3]
[385454202,1757861452082,-480.0,0.00022739,3]
[385454203,1757861452094,-480.0,0.00022739,3]
[385454204,1757861452106,-480.0,0.00022739,3]
[385454205,1757861452120,-1221.84,0.00022739,3]
[385454206,1757861452133,-480.0,0.00022739,3]
[385454207,1757861452146,-550.53342202,0.00022739,3]
[385454208,1757861452156,-480.0,0.00022739,3]
[385454209,1757861452168,-620.21625522,0.00022739,3]
[385454210,1757861452179,-844.86,0.00022739,3]
[385454211,1757861452192,-857.92,0.00022739,3]
[385454212,1757861452205,-480.0,0.00022739,3]
[385454213,1757861452218,-388.48939058,0.00022739,3]
[385454214,1757861452232,-780.94,0.00022739,3]
[385454215,1757861452246,-505.81,0.00022739,3]
[385454216,1757861452260,-151.0,0.00022739,7]
[385454217,1757861452272,-480.0,0.00022739,3]
[385454218,1757861452282,-480.0,0.00022739,3]
[385454219,1757861452293,-151.0,0.00022739,7]
[385454220,1757861452306,-480.0,0.00022739,3]
[385454221,1757861452320,-480.0,0.00022739,3]
[385454222,1757861452334,-624.38,0.00022739,3]
[385454223,1757861452345,-811.47,0.00022739,3]
[385454224,1757861452356,-977.12,0.00022739,3]
[385454225,1757861452369,-1159.89,0.00022739,3]
[385454226,1757861452381,-480.0,0.00022739,3]
[385454227,1757861452392,-1268.92,0.00022739,3]
[385454228,1757861452402,-568.38,0.00022739,3]
[385454229,1757861452414,-683.46,0.00022739,3]
[385454230,1757861452425,-6123.69,0.00022739,3]
[385454231,1757861452436,-480.0,0.00022739,3]
[385454232,1757861452447,-13955.39,0.00022739,3]
[385454233,1757861452459,-815.89,0.00022739,3]
[385454234,1757861452472,-1568.23,0.00022739,3]
[385454235,1757861452483,-4224.97,0.00022739,3]
[385454236,1757861452495,-480.0,0.00022739,3]
[385454237,1757861452507,-480.0,0.00022739,3]
[385454238,1757861452518,-480.0,0.00022739,3]
[385454239,1757861452530,-1574.31,0.00022739,3]
[385454240,1757861452541,-688.79,0.00022739,3]
[385454241,1757861452553,-1617.97,0.00022739,3]
[385454242,1757861452565,-2801.74,0.00022739,3]
[385454243,1757861452576,-512.98,0.00022739,3]
[385454244,1757861452589,-637.03,0.00022739,3]
[385454245,1757861452601,-2310.62,0.00022739,3]
[385454246,1757861452613,-480.0,0.00022739,3]
[385454247,1757861452624,-2314.91,0.00022739,3]
[385454248,1757861452636,-1228.88,0.00022739,3]
[385454249,1757861452648,-7025.21,0.00022739,3]
[385454250,1757861452660,-1342.25,0.00022739,3]
[385454251,1757861452672,-897.97,0.00022739,3]
[385454252,1757861452683,-480.0,0.00022739,3]
[385454253,1757861452696,-480.0,0.00022739,3]
[385454254,1757861452707,-480.0,0.00022739,3]
[385454255,1757861452719,-2920.79,0.00022739,3]
[385454256,1757861452730,-3268.65,0.00022739,3]
[385454257,1757861452742,-1212.06,0.00022739,3]
[385454258,1757861452753,-3076.98,0.00022739,3]
[385454259,1757861452765,-597.56,0.00022739,3]
[385454260,1757861452777,-4228.56,0.00022739,3]
[385454261,1757861452788,-542.98,0.00022739,3]
[385454262,1757861452800,-480.0,0.00022739,3]
[385454263,1757861452812,-971.82,0.00022739,3]
[385454264,1757861452823,-480.0,0.00022739,3]
[385454265,1757861452835,-5753.16,0.00022739,3]
[385454266,1757861452847,-504.52477876,0.00022739,3]